fUSD/lending_fUSD_20241024
["ID","MTS","AMOUNT","RATE_DAILY","PERIOD"]
[340732140,1729746632493,-158.25,0.00057713,2]
[340732141,1729746632503,-158.25,0.00057731,2]
[340732142,1729746632512,-158.25,0.00057749,2]
[340732143,1729746632522,-158.25,0.00057767,2]
[340732144,1729746632531,-270.0,0.00058089,30]
[340732145,1729746632540,-152.0,0.0005832,3]
[340732147,1729746632549,-159.9109,0.0005837,2]
[340732149,1729746632558,-3765.48091568,0.00058378,15]
[340732150,1729746632568,-7012.3852,0.0005838,2]
[340732151,1729746632578,-500.4755,0.0005838,2]
[340732153,1729746632587,-37684.0534,0.0005838,2]
[340732155,1729746632596,-155.82700709,0.0005838,28]
[340732157,1729746632606,-307.60971192,0.0005838,30]
[340732159,1729746632615,-203.57418325,0.0005838,39]
[340732161,1729746632624,-4943.41,0.0005846,30]
[340732163,1729746632633,-11078.1848489,0.00058469,13]
[340732165,1729746632642,-4943.41,0.00058469,30]
[340732166,1729746632651,-4943.41,0.00058469,30]
[340732167,1729746632661,-4943.41,0.00058469,30]
[340732168,1729746632669,-4943.41,0.00058469,30]
[340732169,1729746632679,-281.55728507,0.00058469,120]
[340732170,1729746632688,-121860.033338,0.0005847,13]
[340732171,1729746632697,-176.47572169,0.0005847,7]
[340732172,1729746632707,-502.45025852,0.00058478,31]
[340732173,1729746632716,-500.0,0.00058478,120]
[340732174,1729746632725,-519.31167461,0.00058478,120]
[340732175,1729746632735,-535.52191556,0.00058478,120]
[340732176,1729746632744,-502.99702629,0.00058478,120]
[340732177,1729746632754,-500.0,0.00058478,120]
[340732178,1729746632764,-550.93090092,0.00058478,120]
[340732179,1729746632774,-515.36404668,0.00058478,120]
[340732180,1729746632783,-517.55101143,0.00058478,120]
[340732181,1729746632793,-575.83467575,0.00058478,120]
[340732182,1729746632802,-513.68843365,0.00058478,120]
[340732183,1729746632812,-517.73396335,0.00058478,120]
[340732184,1729746632821,-529.35595833,0.00058478,120]
[340732185,1729746632831,-519.71723004,0.00058478,120]
[340732186,1729746632840,-521.3505862,0.00058478,120]
[340732187,1729746632849,-417.3961757,0.00058478,120]
[340732188,1729746632859,-311.0329,0.00058478,120]
[340732189,1729746632869,-500.0,0.00058478,120]
[340732190,1729746632878,-510.15165742,0.00058478,120]
[340732191,1729746632887,-500.0,0.00058478,120]
[340732192,1729746632896,-500.0,0.00058478,21]
[340732193,1729746632906,-500.0,0.00058478,120]
[340732194,1729746632916,-517.10432748,0.00058478,120]
[340732195,1729746632926,-240.2870722,0.00058478,120]
[340732196,1729746632935,-524.18548414,0.00058478,120]
[340732197,1729746632945,-281.92,0.00058478,120]
[340732198,1729746632954,-521.61802767,0.00058478,120]
[340732199,1729746632963,-404.99934137,0.00058478,120]
[340732200,1729746632973,-500.0,0.00058478,120]
[340732201,1729746632982,-500.0,0.00058478,120]
[340732202,1729746632991,-144.30695842,0.00058478,120]
[340732203,1729746633004,-355.69304158,0.00058478,120]
[340732204,1729746633013,-616.09,0.00058478,120]
[340732205,1729746633022,-130.30033037,0.00058478,120]
[340732206,1729746633034,-390.99339375,0.00058478,120]
[340732207,1729746633043,-139.15160608,0.00058478,120]
[340732208,1729746633056,-360.84839392,0.00058478,120]
[340732209,1729746633066,-507.72174314,0.00058478,120]
[340732210,1729746633075,-70.76953979,0.00058478,120]
[340732211,1729746633128,-429.23046021,0.00058478,120]
[340732212,1729746633138,-500.0,0.00058478,120]
[340732213,1729746633148,-183.22071543,0.00058478,120]
[340732214,1729746633160,-320.78995753,0.00058478,120]
[340732215,1729746633169,-450.50486352,0.00058478,120]
[340732216,1729746633181,-49.49513648,0.00058478,120]
[340732217,1729746633191,-508.66887785,0.00058478,120]
[340732218,1729746633201,-366.91322624,0.00058478,120]
[340732219,1729746633213,-133.08677376,0.00058478,120]
[340732220,1729746633223,-500.0,0.00058478,120]
[340732221,1729746633233,-238.31931401,0.00058478,120]
[340732222,1729746633243,-500.0,0.00058478,120]
[340732223,1729746633252,-500.0,0.00058478,120]
[340732224,1729746633261,-151.86689285,0.00058478,120]
[340732225,1729746633271,-500.0,0.00058478,120]
[340732226,1729746633280,-701.32,0.00058478,120]
[340732227,1729746633290,-7259.89459756,0.00058479,2]
[340732228,1729746633302,-508.47198714,0.00058479,2]
[340732229,1729746633313,-12065.35980153,0.00058479,2]
[340732230,1729746633325,-746.79206796,0.00058479,2]
[340732231,1729746633339,-15934.19514581,0.00058479,2]
[340732232,1729746633349,-181.30111873,0.00058479,120]
[340732233,1729746633359,-277.16,0.00058479,120]
[340732234,1729746633369,-503.19545455,0.00058479,120]
[340732235,1729746633378,-500.0,0.00058479,120]
[340732236,1729746633388,-500.0,0.00058479,120]
[340732237,1729746633397,-504.6960775,0.00058479,120]
[340732238,1729746633407,-504.92828584,0.00058479,120]
[340732239,1729746633416,-509.29265723,0.00058479,120]
[340732240,1729746633426,-187.6274044,0.00058479,120]
[340732241,1729746638442,-401.57247397,0.00058478,120]
[340732242,1729746638453,-325.65373916,0.00058479,120]
[340732243,1729746638463,-505.78864308,0.00058479,120]
[340732244,1729746638473,-506.35308301,0.00058479,120]
[340732245,1729746638483,-503.15052882,0.00058479,120]
[340732246,1729746638493,-552.28863824,0.00058479,120]
[340732247,1729746638503,-20.51383987,0.00058479,120]
[340732248,1729746638520,-479.48616013,0.00058479,120]
[340732249,1729746638530,-350.93701651,0.00058479,120]
[340732251,1729746640263,-149.06298349,0.00058479,120]
[340732252,1729746640272,-507.73298342,0.00058479,120]
[340732253,1729746640281,-323.25550652,0.00058479,120]
[340732254,1729746640290,-500.0,0.00058479,120]
[340732255,1729746640299,-500.0,0.00058479,120]
[340732256,1729746640309,-506.56841068,0.00058479,120]
[340732257,1729746640318,-500.0,0.00058479,120]
[340732258,1729746640327,-350.45452191,0.00058479,120]
[340732259,1729746640429,-274.24655271,0.00058479,120]
[340732260,1729746640438,-500.0,0.00058479,120]
[340732261,1729746640447,-232.65405128,0.00058479,120]
[340732262,1729746640456,-523.30797997,0.00058479,120]
[340732263,1729746640465,-312.93326007,0.00058479,120]
[340732264,1729746640474,-500.0,0.00058479,120]
[340732265,1729746640484,-502.72757821,0.00058479,120]
[340732266,1729746640492,-569.89999072,0.00058479,120]
[340732267,1729746640502,-501.90838859,0.00058479,120]
[340732268,1729746640511,-530.24856696,0.00058479,120]
[340732269,1729746640520,-503.83545773,0.00058479,120]
[340732270,1729746640530,-500.0,0.00058479,120]
[340732271,1729746640538,-509.69014812,0.00058479,120]
[340732272,1729746640548,-541.00372593,0.00058479,120]
[340732273,1729746640557,-503.7462483,0.00058479,120]
[340732274,1729746640565,-492.7625815,0.00058479,120]
[340732275,1729746640574,-567.20046584,0.00058479,120]
[340732276,1729746640584,-505.68780312,0.00058479,120]
[340732277,1729746640594,-510.37456858,0.00058479,120]
[340732278,1729746640603,-509.26756642,0.00058479,120]
[340732279,1729746640612,-508.27154038,0.00058479,120]
[340732280,1729746640622,-507.22646538,0.00058479,120]
[340732281,1729746640634,-529.88030113,0.00058479,120]
[340732282,1729746640643,-501.84272087,0.00058479,120]
[340732283,1729746640652,-521.54476357,0.00058479,120]
[340732284,1729746640661,-509.95438032,0.00058479,120]
[340732285,1729746640672,-516.46582435,0.00058479,120]
[340732286,1729746640681,-515.96760865,0.00058479,120]
[340732287,1729746640690,-509.30424047,0.00058479,120]
[340732288,1729746640699,-503.85326905,0.00058479,120]
[340732289,1729746640708,-500.0,0.00058479,120]
[340732290,1729746640717,-513.76993485,0.00058479,120]
[340732291,1729746640727,-504.11804538,0.00058479,120]
[340732292,1729746640736,-500.0,0.00058479,120]
[340732293,1729746640745,-505.83398036,0.00058479,120]
[340732294,1729746640754,-1047.98,0.00058479,120]
[340732295,1729746640763,-518.00099094,0.00058479,120]
[340732296,1729746640773,-512.53403108,0.00058479,120]
[340732297,1729746640782,-503.66432487,0.00058479,120]
[340732298,1729746640791,-2042.12,0.00058479,120]
[340732299,1729746640800,-506.21752733,0.00058479,120]
[340732300,1729746640809,-558.63132441,0.00058479,120]
[340732301,1729746640818,-500.0,0.00058479,120]
[340732302,1729746640827,-501.05895764,0.00058479,120]
[340732304,1729746640836,-500.0,0.00058479,120]
[340732306,1729746640845,-506.97980906,0.00058479,120]
[340732308,1729746640854,-508.05784587,0.00058479,120]
[340732309,1729746640862,-516.2834768,0.00058479,120]
[340732311,1729746640871,-502.92430826,0.00058479,120]
[340732313,1729746640880,-511.90830587,0.00058479,120]
[340732315,1729746640889,-553.05675991,0.00058479,120]
[340732317,1729746640898,-513.16928085,0.00058479,120]
[340732319,1729746640907,-526.23547224,0.00058479,120]
[340732321,1729746640916,-508.33188405,0.00058479,120]
[340732334,1729746641025,-506.58556317,0.00058479,120]
[340732336,1729746641037,-502.23156616,0.00058479,120]
[340732338,1729746641046,-511.69719808,0.00058479,120]
[340732340,1729746641056,-501.72577133,0.00058479,120]
[340732342,1729746641069,-512.46836019,0.00058479,120]
[340732344,1729746641079,-510.66880096,0.00058479,120]
[340732345,1729746641089,-500.0,0.00058479,120]
[340732347,1729746641098,-508.79933323,0.00058479,120]
[340732349,1729746641107,-506.89194978,0.00058479,120]
[340732351,1729746641116,-500.0,0.00058479,120]
[340732353,1729746641125,-509.12065965,0.00058479,120]
[340732355,1729746641134,-500.0,0.00058479,120]
[340732357,1729746641145,-510.74371603,0.00058479,120]
[340732359,1729746641155,-567.8276407,0.00058479,120]
[340732361,1729746641164,-504.15062044,0.00058479,120]
[340732363,1729746641173,-525.42086977,0.00058479,120]
[340732365,1729746641183,-500.0,0.00058479,120]
[340732367,1729746641192,-503.1944702,0.00058479,120]
[340732369,1729746641201,-507.38170143,0.00058479,120]
[340732371,1729746641210,-517.19037412,0.00058479,120]
[340732372,1729746641220,-524.31399264,0.00058479,120]
[340732374,1729746641229,-499.99714719,0.00058479,120]
[340732376,1729746641239,-506.24534033,0.00058479,120]
[340732378,1729746641248,-501.80993804,0.00058479,120]
[340732379,1729746641257,-512.06208616,0.00058479,120]
[340732380,1729746641267,-516.01921634,0.00058479,120]
[340732381,1729746641276,-519.78604868,0.00058479,120]
[340732382,1729746641285,-501.52469906,0.00058479,120]
[340732383,1729746641294,-559.01062597,0.00058479,120]
[340732384,1729746641304,-502.21249437,0.00058479,120]
[340732385,1729746641314,-612.02300191,0.00058479,120]
[340732386,1729746641324,-500.17486453,0.00058479,120]
[340732387,1729746641333,-501.90648951,0.00058479,120]
[340732388,1729746641342,-500.0,0.00058479,120]
[340732389,1729746641351,-383.19979861,0.00058479,120]
[340732390,1729746641360,-502.86085126,0.00058479,120]
[340732391,1729746641369,-509.72072665,0.00058479,120]
[340732392,1729746641378,-498.93671823,0.00058479,120]
[340732393,1729746641387,-500.0,0.00058479,120]
[340732394,1729746641396,-502.97743301,0.00058479,120]
[340732395,1729746641405,-512.18021269,0.00058479,120]
[340732396,1729746641414,-532.34738258,0.00058479,120]
[340732397,1729746641423,-534.10102341,0.00058479,120]
[340732398,1729746641432,-504.91095526,0.00058479,120]
[340732399,1729746641441,-500.0,0.00058479,120]
[340732400,1729746641450,-293.35065957,0.00058479,120]
[340732401,1729746641468,-207.03464803,0.00058479,120]
[340732402,1729746641477,-644.44370747,0.00058479,120]
[340732403,1729746641486,-177.45774439,0.00058479,120]
[340732404,1729746641497,-322.54225561,0.00058479,120]
[340732405,1729746641506,-360.06297623,0.00058479,120]
[340732406,1729746641517,-143.33716449,0.00058479,120]
[340732407,1729746641526,-508.30005853,0.00058479,120]
[340732408,1729746641535,-382.71777698,0.00058479,120]
[340732409,1729746641546,-117.28222302,0.00058479,120]
[340732410,1729746641555,-505.48303075,0.00058479,120]
[340732411,1729746641565,-88.58324873,0.00058479,120]
[340732412,1729746641576,-356.19588052,0.00058479,120]
[340732413,1729746641589,-68.57379591,0.00058479,120]
[340732414,1729746641602,-503.02680699,0.00058479,120]
[340732415,1729746641611,-504.71955812,0.00058479,120]
[340732416,1729746641621,-328.22483898,0.00058479,120]
[340732417,1729746641634,-191.60565245,0.00058479,120]
[340732418,1729746641643,-511.88097281,0.00058479,120]
[340732419,1729746641653,-502.5804252,0.00058479,120]
[340732420,1729746641662,-500.0,0.00058479,120]
[340732421,1729746641671,-524.13221417,0.00058479,120]
[340732422,1729746641681,-509.91565098,0.00058479,120]
[340732423,1729746641690,-538.61133344,0.00058479,120]
[340732424,1729746641699,-509.28857028,0.00058479,120]
[340732425,1729746641708,-503.96958405,0.00058479,120]
[340732426,1729746641718,-509.16281266,0.00058479,120]
[340732427,1729746641727,-531.17775857,0.00058479,120]
[340732428,1729746641736,-501.59498892,0.00058479,120]
[340732429,1729746641746,-557.96705686,0.00058479,120]
[340732430,1729746641755,-521.33678476,0.00058479,120]
[340732431,1729746641764,-504.09072151,0.00058479,120]
[340732432,1729746641773,-504.49686242,0.00058479,120]
[340732433,1729746641782,-505.17326935,0.00058479,120]
[340732434,1729746641792,-4587.59,0.00058479,120]
[340732435,1729746641801,-501.84074602,0.00058479,120]
[340732436,1729746641810,-503.32169849,0.00058479,120]
[340732437,1729746641821,-506.71,0.00058479,120]
[340732438,1729746641831,-511.51066812,0.00058479,120]
[340732439,1729746641842,-516.49067258,0.00058479,120]
[340732440,1729746641851,-507.17726144,0.00058479,120]
[340732441,1729746641860,-506.28312437,0.00058479,120]
[340732442,1729746641870,-503.91392196,0.00058479,120]
[340732443,1729746641879,-500.0,0.00058479,90]
[340732444,1729746641890,-505.40832606,0.00058479,120]
[340732445,1729746641900,-504.08588887,0.00058479,120]
[340732446,1729746641909,-502.4172419,0.00058479,120]
[340732447,1729746641920,-503.71977721,0.00058479,120]
[340732448,1729746641931,-500.0,0.00058479,120]
[340732449,1729746641940,-539.30031622,0.00058479,120]
[340732450,1729746641950,-503.31849384,0.00058479,120]
[340732451,1729746641959,-608.18800251,0.00058479,120]
[340732452,1729746641968,-511.5,0.00058479,120]
[340732453,1729746641978,-502.27545713,0.00058479,120]
[340732454,1729746641990,-603.49397476,0.00058479,120]
[340732455,1729746642000,-550.9346271,0.00058479,120]
[340732456,1729746642010,-508.4248095,0.00058479,120]
[340732457,1729746642019,-506.76199648,0.00058479,120]
[340732458,1729746642028,-500.0,0.00058479,120]
[340732459,1729746642038,-608.13249569,0.00058479,120]
[340732460,1729746642049,-516.92852113,0.00058479,120]
[340732461,1729746642059,-530.27215312,0.00058479,120]
[340732462,1729746642070,-504.43398488,0.00058479,120]
[340732463,1729746642081,-515.57698429,0.00058479,120]
[340732464,1729746642091,-543.03162179,0.00058479,120]
[340732465,1729746642101,-509.65508638,0.00058479,120]
[340732466,1729746642111,-547.63451499,0.00058479,120]
[340732467,1729746642120,-525.51553805,0.00058479,120]
[340732468,1729746642131,-621.42142732,0.00058479,120]
[340732469,1729746642142,-510.76329021,0.00058479,120]
[340732470,1729746642151,-500.0,0.00058479,120]
[340732471,1729746642162,-504.12957829,0.00058479,120]
[340732472,1729746642171,-500.0,0.00058479,120]
[340732473,1729746642180,-504.49276601,0.00058479,120]
[340732474,1729746642191,-505.28113392,0.00058479,120]
[340732475,1729746642201,-611.53783016,0.00058479,120]
[340732476,1729746642211,-514.16124026,0.00058479,120]
[340732477,1729746642220,-501.72250012,0.00058479,120]
[340732478,1729746642230,-500.0,0.00058479,120]
[340732479,1729746642240,-501.25282654,0.00058479,120]
[340732480,1729746642249,-500.0,0.00058479,120]
[340732481,1729746642258,-500.0,0.00058479,120]
[340732482,1729746642267,-500.0,0.00058479,120]
[340732483,1729746642276,-500.0,0.00058479,120]
[340732484,1729746642289,-529.47408362,0.00058479,120]
[340732485,1729746642302,-503.97465571,0.00058479,120]
[340732486,1729746642314,-568.11955932,0.00058479,120]
[340732487,1729746642326,-503.07687925,0.00058479,120]
[340732488,1729746642338,-502.56666022,0.00058479,120]
[340732489,1729746642348,-1874.46,0.00058479,120]
[340732490,1729746642358,-575.95184353,0.00058479,120]
[340732491,1729746642370,-532.07397482,0.00058479,120]
[340732492,1729746642381,-504.79161397,0.00058479,120]
[340732493,1729746642392,-513.33439659,0.00058479,120]
[340732494,1729746642404,-520.86188498,0.00058479,120]
[340732495,1729746642415,-503.01583586,0.00058479,120]
[340732496,1729746642428,-505.19815766,0.00058479,120]
[340732497,1729746642439,-502.39019845,0.00058479,120]
[340732498,1729746642450,-500.0,0.00058479,120]
[340732499,1729746642462,-500.0,0.00058479,120]
[340732500,1729746642474,-511.43220571,0.00058479,120]
[340732501,1729746642486,-505.84578896,0.00058479,120]
[340732502,1729746642497,-523.73294563,0.00058479,120]
[340732503,1729746642508,-503.3381009,0.00058479,120]
[340732504,1729746642520,-503.56788485,0.00058479,120]
[340732505,1729746642532,-500.0,0.00058479,21]
[340732506,1729746642543,-505.93490738,0.00058479,120]
[340732507,1729746642554,-1908.14,0.00058479,120]
[340732508,1729746642567,-502.46247607,0.00058479,120]
[340732509,1729746642578,-509.29411663,0.00058479,120]
[340732510,1729746642592,-500.62592768,0.00058479,120]
[340732511,1729746642603,-503.99526034,0.00058479,120]
[340732512,1729746642614,-506.74172728,0.00058479,120]
[340732513,1729746642629,-505.74947918,0.00058479,120]
[340732514,1729746642639,-503.36444077,0.00058479,120]
[340732515,1729746642650,-500.0,0.00058479,120]
[340732516,1729746642662,-584.12992729,0.00058479,120]
[340732517,1729746642673,-587.95,0.00058479,120]
[340732518,1729746642686,-546.29267043,0.00058479,120]
[340732519,1729746642699,-506.7317469,0.00058479,120]
[340732520,1729746642710,-601.79322714,0.00058479,120]
[340732521,1729746642724,-503.70717479,0.00058479,120]
[340732522,1729746642735,-511.40981636,0.00058479,120]
[340732523,1729746642746,-507.74807702,0.00058479,120]
[340732524,1729746642759,-564.93780057,0.00058479,120]
[340732525,1729746642771,-500.0,0.00058479,120]
[340732526,1729746642783,-500.0,0.00058479,120]
[340732527,1729746642796,-516.25291109,0.00058479,120]
[340732528,1729746642809,-500.0,0.00058479,120]
[340732529,1729746642819,-502.93716294,0.00058479,120]
[340732530,1729746642830,-500.0,0.00058479,120]
[340732531,1729746642840,-507.29434753,0.00058479,120]
[340732532,1729746642851,-500.0,0.00058479,120]
[340732533,1729746642862,-509.45130096,0.00058479,120]
[340732534,1729746642873,-507.22510476,0.00058479,120]
[340732535,1729746642886,-503.56315386,0.00058479,120]
[340732536,1729746642897,-505.97957812,0.00058479,120]
[340732537,1729746642910,-500.0,0.00058479,120]
[340732538,1729746642920,-502.24504367,0.00058479,120]
[340732539,1729746642930,-504.79014634,0.00058479,120]
[340732540,1729746642942,-518.95445534,0.00058479,120]
[340732541,1729746642953,-506.19704879,0.00058479,120]
[340732542,1729746642963,-500.0,0.00058479,120]
[340732543,1729746642975,-501.82151545,0.00058479,120]
[340732544,1729746642986,-616.09,0.00058479,120]
[340732545,1729746642996,-512.75166106,0.00058479,120]
[340732546,1729746643007,-520.06955536,0.00058479,120]
[340732547,1729746643018,-512.81851069,0.00058479,120]
[340732548,1729746643029,-515.93834787,0.00058479,120]
[340732549,1729746643040,-508.91351281,0.00058479,120]
[340732550,1729746643051,-508.11570388,0.00058479,120]
[340732552,1729746643062,-504.50630603,0.00058479,120]
[340732554,1729746643074,-502.87682866,0.00058479,120]
[340732557,1729746643087,-500.0,0.00058479,120]
[340732559,1729746643098,-500.0,0.00058479,120]
[340732561,1729746643109,-512.58190886,0.00058479,120]
[340732563,1729746643121,-502.91133447,0.00058479,120]
[340732565,1729746643133,-551.47434991,0.00058479,120]
[340732566,1729746643145,-503.5136093,0.00058479,120]
[340732567,1729746643155,-504.48393407,0.00058479,120]
[340732568,1729746643166,-500.0,0.00058479,120]
[340732569,1729746643177,-519.83057672,0.00058479,120]
[340732570,1729746643187,-500.0,0.00058479,120]
[340732571,1729746643198,-567.91777074,0.00058479,120]
[340732572,1729746643209,-507.72213883,0.00058479,120]
[340732573,1729746643220,-505.68050018,0.00058479,120]
[340732574,1729746643231,-507.07142706,0.00058479,120]
[340732575,1729746643242,-559.82549991,0.00058479,120]
[340732576,1729746643253,-505.89322873,0.00058479,120]
[340732577,1729746643264,-551.77356057,0.00058479,60]
[340732578,1729746643275,-500.0,0.00058479,120]
[340732579,1729746643286,-505.18374405,0.00058479,120]
[340732580,1729746643297,-500.0,0.00058479,120]
[340732581,1729746643308,-498.75809554,0.00058479,120]
[340732582,1729746643319,-514.8775835,0.00058479,120]
[340732583,1729746643330,-500.0,0.00058479,120]
[340732584,1729746643343,-503.36855962,0.00058479,120]
[340732585,1729746643354,-507.96432863,0.00058479,120]
[340732586,1729746643365,-502.95495052,0.00058479,120]
[340732587,1729746643376,-504.32941139,0.00058479,120]
[340732588,1729746643387,-518.47152524,0.00058479,120]
[340732589,1729746643398,-502.03697752,0.00058479,120]
[340732590,1729746643409,-151.0,0.00058479,120]
[340732591,1729746643419,-504.20639759,0.00058479,120]
[340732592,1729746643430,-500.0,0.00058479,120]
[340732593,1729746643441,-533.47560599,0.00058479,120]
[340732594,1729746643451,-504.08071047,0.00058479,120]
[340732595,1729746643462,-510.45275101,0.00058479,120]
[340732596,1729746643472,-501.64909972,0.00058479,120]
[340732597,1729746643483,-500.0,0.00058479,120]
[340732598,1729746643494,-505.24842358,0.00058479,120]
[340732599,1729746643505,-503.28373818,0.00058479,120]
[340732600,1729746643516,-151.0,0.00058479,120]
[340732601,1729746643527,-520.63545988,0.00058479,120]
[340732602,1729746643538,-505.52834482,0.00058479,120]
[340732603,1729746643549,-500.0,0.00058479,120]
[340732604,1729746643561,-506.94611486,0.00058479,120]
[340732605,1729746643571,-512.33495281,0.00058479,120]
[340732606,1729746643582,-503.65957277,0.00058479,120]
[340732607,1729746643595,-536.79613102,0.00058479,120]
[340732608,1729746643605,-508.8072278,0.00058479,120]
[340732609,1729746643617,-595.83995795,0.00058479,120]
[340732610,1729746643632,-152.405554,0.00058479,7]
[340732611,1729746643644,-504.86462101,0.00058479,120]
[340732612,1729746643656,-555.92791624,0.00058479,120]
[340732613,1729746643666,-466.82932956,0.00058479,120]
[340732614,1729746643677,-500.0,0.00058479,120]
[340732615,1729746643687,-504.99232928,0.00058479,120]
[340732616,1729746643697,-505.16753979,0.00058479,120]
[340732617,1729746643707,-522.10632665,0.00058479,120]
[340732618,1729746643863,-506.7913406,0.00058479,120]
[340732619,1729746643874,-502.08021889,0.00058479,120]
[340732620,1729746643884,-522.18222859,0.00058479,120]
[340732621,1729746643894,-516.50504161,0.00058479,120]
[340732622,1729746643905,-526.81441801,0.00058479,120]
[340732623,1729746643915,-500.0,0.00058479,120]
[340732624,1729746643926,-151.0,0.00058479,120]
[340732625,1729746643936,-494.52520354,0.00058479,120]
[340732626,1729746643946,-503.54978552,0.00058479,120]
[340732627,1729746643956,-152.192151,0.00058479,120]
[340732628,1729746643965,-506.27408935,0.00058479,120]
[340732629,1729746643974,-506.46282393,0.00058479,120]
[340732630,1729746643984,-500.0,0.00058479,120]
[340732631,1729746643993,-505.46978412,0.00058479,120]
[340732632,1729746644002,-455.03448742,0.00058479,120]
[340732633,1729746644012,-504.39847185,0.00058479,120]
[340732634,1729746644021,-336.15,0.00058479,120]
[340732635,1729746644030,-500.0,0.00058479,120]
[340732636,1729746644040,-645.65120722,0.00058479,120]
[340732637,1729746644049,-701.32,0.00058479,120]
[340732638,1729746644058,-504.39729453,0.00058479,120]
[340732639,1729746644068,-515.52382689,0.00058479,120]
[340732640,1729746644078,-500.0,0.00058479,120]
[340732641,1729746644088,-505.78009206,0.00058479,120]
[340732642,1729746644098,-153.564698,0.00058479,120]
[340732643,1729746644107,-506.3056352,0.00058479,120]
[340732644,1729746644117,-511.2290418,0.00058479,120]
[340732645,1729746644127,-500.0,0.00058479,120]
[340732646,1729746644136,-502.95989886,0.00058479,120]
[340732647,1729746644146,-507.97726936,0.00058479,120]
[340732648,1729746644156,-596.19126945,0.00058479,120]
[340732649,1729746644166,-500.0,0.00058479,120]
[340732650,1729746644175,-507.07109383,0.00058479,120]
[340732651,1729746644185,-16766.5335192,0.0005848,2]
[340732652,1729746644200,-16707.83678733,0.0005848,2]
[340732653,1729746644262,-151.0,0.00058479,120]
[340732654,1729746644272,-951.39785248,0.00058479,120]
[340732655,1729746644285,-2871.59214752,0.00058479,120]
[340732656,1729746644295,-74380.40873517,0.0005848,2]
[340732657,1729746644307,-967.49332089,0.0005848,2]
[340732658,1729746644319,-13102.56263663,0.0005848,2]
[340732659,1729746644331,-3265.01060924,0.0005848,2]
[340732660,1729746644343,-18167.26414413,0.0005848,2]
[340732661,1729746644355,-8945.95086052,0.0005848,2]
[340732662,1729746644366,-592.30508835,0.0005848,2]
[340732663,1729746644378,-10992.66936184,0.0005848,2]
[340732664,1729746644394,-489.18296135,0.0005848,2]
[340732665,1729746644405,-362.76485203,0.0005848,2]
[340732666,1729746644417,-1067.6047624,0.0005848,2]
[340732667,1729746644429,-455.24917089,0.0005848,2]
[340732668,1729746644441,-371.25211803,0.0005848,2]
[340732669,1729746644452,-311.7686698,0.0005848,2]
[340732670,1729746644464,-8891.00278943,0.0005848,2]
[340732671,1729746644481,-307.38034948,0.0005848,2]
[340732672,1729746644493,-547.5804075,0.0005848,2]
[340732673,1729746644505,-484.56846424,0.0005848,2]
[340732674,1729746644518,-1668.02297108,0.0005848,2]
[340732675,1729746644531,-993.12736041,0.0005848,2]
[340732676,1729746646081,-739.53,0.00058479,120]
[340732677,1729746646091,-773.90142209,0.0005848,2]
[340732678,1729746646140,-64388.55863797,0.0005848,2]
[340732679,1729746646150,-500.0,0.0005848,2]
[340732680,1729746646160,-151.0,0.0005848,120]
[340732681,1729746646170,-151.0,0.0005848,30]
[340732682,1729746646179,-151.0,0.0005848,120]
[340732683,1729746646189,-151.0,0.0005848,120]
[340732684,1729746646198,-365.202638,0.0005848,120]
[340732685,1729746646207,-365.202638,0.0005848,120]
[340732686,1729746646217,-153.135914,0.0005848,120]
[340732687,1729746646226,-153.058906,0.0005848,120]
[340732688,1729746646236,-162.392948,0.0005848,120]
[340732689,1729746646245,-151.0,0.0005848,120]
[340732690,1729746646254,-151.0,0.0005848,120]
[340732691,1729746646264,-261.914955,0.0005848,120]
[340732692,1729746646273,-5539.09242447,0.00058549,13]
[340732693,1729746646282,-5539.09242447,0.00058558,13]
[340732694,1729746646292,-1981.38639005,0.00058558,12]
[340732695,1729746646301,-27695.4621223,0.00058559,13]
[340732696,1729746646311,-5944.15917015,0.00058559,12]
[340732697,1729746646321,-277.16,0.00058568,120]
[340732698,1729746646330,-500.0,0.00058568,120]
[340732699,1729746646341,-500.0,0.00058568,120]